[Event "Titled Tuesday Blitz September 20 Late 2022"]
[White "Naroditsky, Daniel"]
[Black "Melkumyan, Hrant"]
[WhiteFideId "2026961"]
[BlackFideId "13302485"]
[WhiteElo "3122"]
[BlackElo "2944"]
[Result "1-0"]
[Round "08"]
[TimeControl "180+1"]
[Date "2022.09.20"]
[WhiteClock "0:00:04"]
[BlackClock "0:00:02"]

1. e4 {[%clk 0:03:00]}  c6 {[%clk 0:02:59]} 2. d4 {[%clk 0:02:59]}  d5 {[%clk 0:03:00]} 3. f3 {[%clk 0:03:00]}  e6 {[%clk 0:02:59]} 4. Nc3 {[%clk 0:02:59]}  Bb4 {[%clk 0:02:59]} 5. Bd3 {[%clk 0:02:59]}  Ne7 {[%clk 0:02:55]} 6. Ne2 {[%clk 0:02:57]}  b6 {[%clk 0:02:48]} 7. O-O {[%clk 0:02:56]}  Ba6 {[%clk 0:02:47]} 8. Bxa6 {[%clk 0:02:55]}  Nxa6 {[%clk 0:02:48]} 9. Qd3 {[%clk 0:02:56]}  Nc7 {[%clk 0:02:46]} 10. a3 {[%clk 0:02:49]}  Bxc3 {[%clk 0:02:43]} 11. Nxc3 {[%clk 0:02:50]}  O-O {[%clk 0:02:41]} 12. Bf4 {[%clk 0:02:50]}  Ng6 {[%clk 0:02:30]} 13. Bg3 {[%clk 0:02:47]}  dxe4 {[%clk 0:02:21]} 14. fxe4 {[%clk 0:02:39]}  e5 {[%clk 0:02:21]} 15. dxe5 {[%clk 0:02:25]}  Ne6 {[%clk 0:02:19]} 16. Rad1 {[%clk 0:02:20]}  Qg5 {[%clk 0:02:06]} 17. Qd6 {[%clk 0:02:11]}  Rac8 {[%clk 0:01:56]} 18. Qd2 {[%clk 0:01:51]}  Qxd2 {[%clk 0:01:38]} 19. Rxd2 {[%clk 0:01:49]}  Rc7 {[%clk 0:01:31]} 20. Rd6 {[%clk 0:01:45]}  Re8 {[%clk 0:01:26]} 21. Rfd1 {[%clk 0:01:45]}  Ngf8 {[%clk 0:01:23]} 22. b4 {[%clk 0:01:31]}  h6 {[%clk 0:01:20]} 23. a4 {[%clk 0:01:29]}  Rec8 {[%clk 0:01:10]} 24. Bf2 {[%clk 0:01:26]}  Ng6 {[%clk 0:01:06]} 25. a5 {[%clk 0:01:19]}  Nxe5 {[%clk 0:00:47]} 26. axb6 {[%clk 0:00:54]}  axb6 {[%clk 0:00:48]} 27. Bxb6 {[%clk 0:00:29]}  Rb7 {[%clk 0:00:48]} 28. Ba5 {[%clk 0:00:29]}  Nc4 {[%clk 0:00:48]} 29. Rd7 {[%clk 0:00:27]}  Rxd7 {[%clk 0:00:48]} 30. Rxd7 {[%clk 0:00:28]}  Nxa5 {[%clk 0:00:48]} 31. bxa5 {[%clk 0:00:29]}  Ra8 {[%clk 0:00:49]} 32. Rd6 {[%clk 0:00:25]}  Ra6 {[%clk 0:00:39]} 33. Nd5 {[%clk 0:00:21]}  Rxa5 {[%clk 0:00:35]} 34. Rxc6 {[%clk 0:00:21]}  Ra4 {[%clk 0:00:23]} 35. c4 {[%clk 0:00:21]}  Ra2 {[%clk 0:00:21]} 36. c5 {[%clk 0:00:15]}  Rc2 {[%clk 0:00:20]} 37. Rc8+ {[%clk 0:00:15]}  Kh7 {[%clk 0:00:20]} 38. c6 {[%clk 0:00:16]}  Kg6 {[%clk 0:00:14]} 39. c7 {[%clk 0:00:13]}  h5 {[%clk 0:00:14]} 40. h3 {[%clk 0:00:11]}  h4 {[%clk 0:00:14]} 41. Rh8 {[%clk 0:00:06]}  Nxc7 {[%clk 0:00:11]} 42. Rc8 {[%clk 0:00:07]}  Nxd5 {[%clk 0:00:07]} 43. Rxc2 {[%clk 0:00:07]}  Nf4 {[%clk 0:00:07]} 44. Kf2 {[%clk 0:00:06]}  f6 {[%clk 0:00:07]} 45. Ke3 {[%clk 0:00:05]}  Ne6 {[%clk 0:00:04]} 46. Rc6 {[%clk 0:00:03]}  Ng5 {[%clk 0:00:04]} 47. Kf4 {[%clk 0:00:04]}  Nf7 {[%clk 0:00:04]} 48. Rc5 {[%clk 0:00:04]}  Kh6 {[%clk 0:00:04]} 49. Kg4 {[%clk 0:00:02]}  Nd6 {[%clk 0:00:03]} 50. Kf4 {[%clk 0:00:02]}  Kg6 {[%clk 0:00:03]} 51. Rd5 {[%clk 0:00:02]}  Nf7 {[%clk 0:00:03]} 52. Kg4 {[%clk 0:00:02]}  Ng5 {[%clk 0:00:01]} 53. Rxg5+ {[%clk 0:00:03]}  fxg5 {[%clk 0:00:02]} 54. e5 {[%clk 0:00:03]}  Kh6 {[%clk 0:00:02]} 55. Kf5 {[%clk 0:00:04]} 1-0


[Site "https://www.chess.com"]

[Event "Titled Tuesday Blitz September 20 Late 2022"]
[White "Pakleza, Zbigniew"]
[Black "Baskakov, Egor"]
[WhiteFideId "1119290"]
[BlackFideId "24197866"]
[WhiteElo "2411"]
[BlackElo "2211"]
[Result "1-0"]
[Round "08"]
[TimeControl "180+1"]
[Date "2022.09.20"]
[WhiteClock "0:00:48"]
[BlackClock "0:00:57"]

1. d4 {[%clk 0:03:00]}  Nf6 {[%clk 0:02:59]} 2. Nf3 {[%clk 0:03:00]}  e6 {[%clk 0:02:59]} 3. Bf4 {[%clk 0:03:00]}  d5 {[%clk 0:03:00]} 4. e3 {[%clk 0:03:00]}  Be7 {[%clk 0:02:59]} 5. Nbd2 {[%clk 0:03:00]}  Ne4 {[%clk 0:02:59]} 6. Nxe4 {[%clk 0:02:54]}  dxe4 {[%clk 0:03:00]} 7. Nd2 {[%clk 0:02:54]}  f5 {[%clk 0:03:01]} 8. c3 {[%clk 0:02:51]}  Bd6 {[%clk 0:02:59]} 9. Bg3 {[%clk 0:02:47]}  O-O {[%clk 0:02:59]} 10. Be2 {[%clk 0:02:45]}  g5 {[%clk 0:02:56]} 11. Bxd6 {[%clk 0:02:41]}  cxd6 {[%clk 0:02:56]} 12. h4 {[%clk 0:02:27]}  gxh4 {[%clk 0:02:44]} 13. Qb3 {[%clk 0:02:26]}  d5 {[%clk 0:02:44]} 14. O-O-O {[%clk 0:02:25]}  Nc6 {[%clk 0:02:39]} 15. Rh2 {[%clk 0:02:24]}  Rf6 {[%clk 0:02:36]} 16. Rdh1 {[%clk 0:02:23]}  Rh6 {[%clk 0:02:36]} 17. g3 {[%clk 0:02:11]}  Rb8 {[%clk 0:02:32]} 18. gxh4 {[%clk 0:02:02]}  Rg6 {[%clk 0:02:30]} 19. h5 {[%clk 0:02:03]}  Rg5 {[%clk 0:02:29]} 20. Qd1 {[%clk 0:01:48]}  Bd7 {[%clk 0:02:26]} 21. f4 {[%clk 0:01:38]}  Rg7 {[%clk 0:02:03]} 22. h6 {[%clk 0:01:36]}  Rg6 {[%clk 0:02:04]} 23. Bh5 {[%clk 0:01:32]}  Be8 {[%clk 0:01:46]} 24. Bxg6 {[%clk 0:01:31]}  Bxg6 {[%clk 0:01:47]} 25. Rg1 {[%clk 0:01:28]}  Ne7 {[%clk 0:01:36]} 26. Kb1 {[%clk 0:01:27]}  a5 {[%clk 0:01:34]} 27. c4 {[%clk 0:01:22]}  b6 {[%clk 0:01:31]} 28. Qb3 {[%clk 0:01:17]}  Qd6 {[%clk 0:01:30]} 29. Rc1 {[%clk 0:01:13]}  Kh8 {[%clk 0:01:25]} 30. c5 {[%clk 0:01:03]}  Qd8 {[%clk 0:01:16]} 31. cxb6 {[%clk 0:00:57]}  Rxb6 {[%clk 0:01:16]} 32. Qa3 {[%clk 0:00:54]}  Nc6 {[%clk 0:00:59]} 33. Nb3 {[%clk 0:00:54]}  Nb4 {[%clk 0:00:58]} 34. Qxa5 {[%clk 0:00:50]}  Qb8 {[%clk 0:00:57]} 35. Qxb6 {[%clk 0:00:48]} 1-0


[Site "https://www.chess.com"]

[Event "Titled Tuesday Blitz September 20 Late 2022"]
[White "Paravyan, David"]
[Black "Andreikin, Dmitry"]
[WhiteFideId "4194985"]
[BlackFideId "4158814"]
[WhiteElo "2902"]
[BlackElo "3049"]
[Result "1-0"]
[Round "08"]
[TimeControl "180+1"]
[Date "2022.09.20"]
[WhiteClock "0:00:05"]
[BlackClock "0:00:09"]

1. c4 {[%clk 0:03:00]}  e5 {[%clk 0:02:58]} 2. Nc3 {[%clk 0:03:00]}  Nc6 {[%clk 0:02:58]} 3. Nf3 {[%clk 0:03:00]}  Nf6 {[%clk 0:02:58]} 4. g3 {[%clk 0:02:59]}  Bc5 {[%clk 0:02:55]} 5. Bg2 {[%clk 0:02:58]}  d6 {[%clk 0:02:53]} 6. O-O {[%clk 0:02:59]}  O-O {[%clk 0:02:52]} 7. d3 {[%clk 0:02:59]}  h6 {[%clk 0:02:52]} 8. a3 {[%clk 0:03:00]}  a6 {[%clk 0:02:52]} 9. b4 {[%clk 0:03:00]}  Ba7 {[%clk 0:02:51]} 10. Bb2 {[%clk 0:03:00]}  Ne7 {[%clk 0:02:49]} 11. e3 {[%clk 0:03:00]}  c6 {[%clk 0:02:49]} 12. Rc1 {[%clk 0:02:59]}  Ng6 {[%clk 0:02:49]} 13. Qc2 {[%clk 0:02:59]}  Bg4 {[%clk 0:02:47]} 14. h3 {[%clk 0:02:57]}  Bf5 {[%clk 0:02:46]} 15. Nd2 {[%clk 0:02:54]}  Qd7 {[%clk 0:02:46]} 16. Kh2 {[%clk 0:02:51]}  d5 {[%clk 0:02:41]} 17. c5 {[%clk 0:02:51]}  Rad8 {[%clk 0:02:37]} 18. e4 {[%clk 0:02:50]}  Be6 {[%clk 0:02:33]} 19. Nf3 {[%clk 0:02:48]}  Bb8 {[%clk 0:02:31]} 20. Rfe1 {[%clk 0:02:46]}  Nh5 {[%clk 0:02:20]} 21. Na4 {[%clk 0:02:35]}  dxe4 {[%clk 0:02:04]} 22. dxe4 {[%clk 0:02:32]}  f5 {[%clk 0:02:03]} 23. Nb6 {[%clk 0:02:27]}  Qf7 {[%clk 0:02:02]} 24. Nc4 {[%clk 0:01:44]}  Nhf4 {[%clk 0:01:40]} 25. gxf4 {[%clk 0:01:41]}  Nxf4 {[%clk 0:01:41]} 26. Nd6 {[%clk 0:01:20]}  Bxd6 {[%clk 0:01:40]} 27. cxd6 {[%clk 0:01:21]}  Qh5 {[%clk 0:01:34]} 28. exf5 {[%clk 0:00:40]}  Bd5 {[%clk 0:01:19]} 29. Rxe5 {[%clk 0:00:34]}  Nxg2 {[%clk 0:00:41]} 30. Re7 {[%clk 0:00:32]}  Rf7 {[%clk 0:00:42]} 31. Rxf7 {[%clk 0:00:20]}  Qxf7 {[%clk 0:00:41]} 32. Kxg2 {[%clk 0:00:18]}  Qh5 {[%clk 0:00:42]} 33. Qc3 {[%clk 0:00:17]}  Rd7 {[%clk 0:00:33]} 34. Re1 {[%clk 0:00:16]}  Qg5+ {[%clk 0:00:17]} 35. Kf1 {[%clk 0:00:16]}  Qxf5 {[%clk 0:00:16]} 36. Re7 {[%clk 0:00:12]}  Qxh3+ {[%clk 0:00:16]} 37. Ke1 {[%clk 0:00:12]}  Rxe7+ {[%clk 0:00:08]} 38. dxe7 {[%clk 0:00:12]}  Qe6+ {[%clk 0:00:09]} 39. Qe5 {[%clk 0:00:09]}  Kf7 {[%clk 0:00:09]} 40. Qxe6+ {[%clk 0:00:05]}  Bxe6 {[%clk 0:00:10]} 41. Bxg7 {[%clk 0:00:03]}  Kxe7 {[%clk 0:00:08]} 42. Bxh6 {[%clk 0:00:04]}  Kd6 {[%clk 0:00:09]} 43. Kd2 {[%clk 0:00:03]}  Kd5 {[%clk 0:00:09]} 44. Kc3 {[%clk 0:00:04]}  c5 {[%clk 0:00:10]} 45. Be3 {[%clk 0:00:03]}  cxb4+ {[%clk 0:00:09]} 46. Kxb4 {[%clk 0:00:04]}  Kc6 {[%clk 0:00:09]} 47. Nd4+ {[%clk 0:00:05]}  Kd5 {[%clk 0:00:09]} 48. Nxe6 {[%clk 0:00:05]} 1-0


[Site "https://www.chess.com"]

[Event "Titled Tuesday Blitz September 20 Late 2022"]
[White "Preotu, Razvan"]
[Black "Besedes, Danilo"]
[WhiteFideId "2613280"]
[BlackFideId "946796"]
[WhiteElo "2407"]
[BlackElo "2352"]
[Result "0-1"]
[Round "08"]
[TimeControl "180+1"]
[Date "2022.09.20"]
[WhiteClock "0:00:08"]
[BlackClock "0:01:20"]

1. e4 {[%clk 0:03:00]}  e6 {[%clk 0:02:59]} 2. d4 {[%clk 0:03:00]}  d5 {[%clk 0:02:59]} 3. Nc3 {[%clk 0:03:01]}  dxe4 {[%clk 0:02:58]} 4. Nxe4 {[%clk 0:03:02]}  Bd7 {[%clk 0:02:58]} 5. Nf3 {[%clk 0:03:01]}  Bc6 {[%clk 0:02:58]} 6. Bd3 {[%clk 0:03:02]}  Nd7 {[%clk 0:02:58]} 7. Bf4 {[%clk 0:03:01]}  Ngf6 {[%clk 0:02:58]} 8. Ned2 {[%clk 0:02:53]}  Bd6 {[%clk 0:02:57]} 9. Bg3 {[%clk 0:02:46]}  O-O {[%clk 0:02:55]} 10. Qe2 {[%clk 0:02:43]}  Bxf3 {[%clk 0:02:42]} 11. Nxf3 {[%clk 0:02:43]}  Nd5 {[%clk 0:02:36]} 12. c4 {[%clk 0:02:15]}  Bb4+ {[%clk 0:02:29]} 13. Kf1 {[%clk 0:01:57]}  N5f6 {[%clk 0:02:28]} 14. h4 {[%clk 0:01:32]}  Re8 {[%clk 0:02:26]} 15. h5 {[%clk 0:01:32]}  h6 {[%clk 0:02:26]} 16. a3 {[%clk 0:00:47]}  Bd6 {[%clk 0:02:25]} 17. Ne5 {[%clk 0:00:47]}  Bf8 {[%clk 0:02:11]} 18. Bf4 {[%clk 0:00:33]}  c5 {[%clk 0:02:10]} 19. Rh3 {[%clk 0:00:28]}  cxd4 {[%clk 0:02:09]} 20. Rg3 {[%clk 0:00:28]}  Nxe5 {[%clk 0:02:06]} 21. Qxe5 {[%clk 0:00:22]}  Kh8 {[%clk 0:01:57]} 22. Rd1 {[%clk 0:00:16]}  Rc8 {[%clk 0:01:50]} 23. b3 {[%clk 0:00:15]}  Rc5 {[%clk 0:01:48]} 24. Qe2 {[%clk 0:00:15]}  Rxh5 {[%clk 0:01:47]} 25. Kg1 {[%clk 0:00:14]}  e5 {[%clk 0:01:43]} 26. Bc1 {[%clk 0:00:14]}  e4 {[%clk 0:01:40]} 27. Bb1 {[%clk 0:00:15]}  d3 {[%clk 0:01:40]} 28. Qe3 {[%clk 0:00:13]}  Qc7 {[%clk 0:01:37]} 29. Rh3 {[%clk 0:00:14]}  Rxh3 {[%clk 0:01:36]} 30. Qxh3 {[%clk 0:00:15]}  Kg8 {[%clk 0:01:36]} 31. Bb2 {[%clk 0:00:15]}  Qf4 {[%clk 0:01:35]} 32. Qe3 {[%clk 0:00:11]}  Qxe3 {[%clk 0:01:34]} 33. fxe3 {[%clk 0:00:11]}  Bc5 {[%clk 0:01:34]} 34. Bd4 {[%clk 0:00:07]}  b6 {[%clk 0:01:33]} 35. b4 {[%clk 0:00:07]}  Bxd4 {[%clk 0:01:26]} 36. exd4 {[%clk 0:00:08]}  Ng4 {[%clk 0:01:24]} 37. Re1 {[%clk 0:00:08]}  d2 {[%clk 0:01:20]} 38. Rd1 {[%clk 0:00:08]}  e3 {[%clk 0:01:20]} 0-1


[Site "https://www.chess.com"]

[Event "Titled Tuesday Blitz September 20 Late 2022"]
[White "Terry, Renato"]
[Black "Safarli, Eltaj"]
[WhiteFideId "3803457"]
[BlackFideId "13402129"]
[WhiteElo "2577"]
[BlackElo "2634"]
[Result "0-1"]
[Round "08"]
[TimeControl "180+1"]
[Date "2022.09.20"]
[WhiteClock "0:00:45"]
[BlackClock "0:02:13"]

1. d4 {[%clk 0:03:00]}  Nf6 {[%clk 0:02:59]} 2. Nf3 {[%clk 0:03:01]}  g6 {[%clk 0:02:59]} 3. Bg5 {[%clk 0:03:01]}  Bg7 {[%clk 0:03:00]} 4. c3 {[%clk 0:03:01]}  O-O {[%clk 0:02:59]} 5. Nbd2 {[%clk 0:03:02]}  d6 {[%clk 0:02:59]} 6. e4 {[%clk 0:03:02]}  c5 {[%clk 0:02:59]} 7. dxc5 {[%clk 0:03:03]}  dxc5 {[%clk 0:02:59]} 8. Bc4 {[%clk 0:03:03]}  Nc6 {[%clk 0:02:59]} 9. Qe2 {[%clk 0:03:04]}  Qc7 {[%clk 0:02:57]} 10. O-O {[%clk 0:03:03]}  b6 {[%clk 0:02:55]} 11. Rfe1 {[%clk 0:03:02]}  Bb7 {[%clk 0:02:52]} 12. e5 {[%clk 0:02:58]}  Nd7 {[%clk 0:02:41]} 13. e6 {[%clk 0:02:53]}  fxe6 {[%clk 0:02:42]} 14. Bxe6+ {[%clk 0:02:41]}  Kh8 {[%clk 0:02:42]} 15. Nc4 {[%clk 0:02:41]}  Nf6 {[%clk 0:02:36]} 16. Nfe5 {[%clk 0:02:35]}  Nxe5 {[%clk 0:02:34]} 17. Nxe5 {[%clk 0:02:34]}  Ne4 {[%clk 0:02:28]} 18. Nxg6+ {[%clk 0:01:05]}  hxg6 {[%clk 0:02:27]} 19. Qxe4 {[%clk 0:01:05]}  Bxe4 {[%clk 0:02:23]} 20. Rxe4 {[%clk 0:01:06]}  Be5 {[%clk 0:02:17]} 21. Rae1 {[%clk 0:00:45]}  Bf4 {[%clk 0:02:13]} 0-1


[Site "https://www.chess.com"]

[Event "Titled Tuesday Blitz September 20 Late 2022"]
[White "Timmermans, Mark"]
[Black "Cukrowski, Filip"]
[WhiteFideId "1026399"]
[BlackFideId "1171097"]
[WhiteElo "2460"]
[BlackElo "2093"]
[Result "1-0"]
[Round "08"]
[TimeControl "180+1"]
[Date "2022.09.20"]
[WhiteClock "0:01:06"]
[BlackClock "0:00:15"]

1. b4 {[%clk 0:03:00]}  Nf6 {[%clk 0:02:54]} 2. Bb2 {[%clk 0:03:00]}  d6 {[%clk 0:02:53]} 3. c4 {[%clk 0:02:59]}  c5 {[%clk 0:02:51]} 4. b5 {[%clk 0:02:59]}  a6 {[%clk 0:02:49]} 5. a4 {[%clk 0:02:58]}  axb5 {[%clk 0:02:48]} 6. axb5 {[%clk 0:02:59]}  Rxa1 {[%clk 0:02:48]} 7. Bxa1 {[%clk 0:03:00]}  g6 {[%clk 0:02:45]} 8. e3 {[%clk 0:02:59]}  Bg7 {[%clk 0:02:45]} 9. Nf3 {[%clk 0:03:00]}  O-O {[%clk 0:02:45]} 10. Be2 {[%clk 0:03:00]}  d5 {[%clk 0:02:44]} 11. cxd5 {[%clk 0:03:01]}  Qxd5 {[%clk 0:02:43]} 12. Nc3 {[%clk 0:03:00]}  Qd8 {[%clk 0:02:40]} 13. O-O {[%clk 0:03:00]}  b6 {[%clk 0:02:37]} 14. d4 {[%clk 0:03:00]}  Nbd7 {[%clk 0:02:34]} 15. dxc5 {[%clk 0:02:52]}  Nxc5 {[%clk 0:02:34]} 16. Nd4 {[%clk 0:02:53]}  Bb7 {[%clk 0:02:26]} 17. Bf3 {[%clk 0:02:53]}  Qc7 {[%clk 0:02:19]} 18. Bxb7 {[%clk 0:02:44]}  Qxb7 {[%clk 0:02:20]} 19. Nc6 {[%clk 0:02:41]}  e6 {[%clk 0:02:13]} 20. Bb2 {[%clk 0:02:36]}  Ne8 {[%clk 0:01:58]} 21. Qe2 {[%clk 0:02:03]}  Nd6 {[%clk 0:01:41]} 22. Rd1 {[%clk 0:01:54]}  Qc7 {[%clk 0:01:40]} 23. Ra1 {[%clk 0:01:50]}  Nc8 {[%clk 0:01:23]} 24. g3 {[%clk 0:01:44]}  Nb7 {[%clk 0:01:06]} 25. Ne4 {[%clk 0:01:34]}  e5 {[%clk 0:00:58]} 26. Ba3 {[%clk 0:01:31]}  Re8 {[%clk 0:00:56]} 27. Rd1 {[%clk 0:01:31]}  Na5 {[%clk 0:00:53]} 28. Nd6 {[%clk 0:01:25]}  Nxd6 {[%clk 0:00:51]} 29. Bxd6 {[%clk 0:01:26]}  Qb7 {[%clk 0:00:49]} 30. Qc2 {[%clk 0:01:20]}  Bf6 {[%clk 0:00:35]} 31. Rc1 {[%clk 0:01:16]}  Kg7 {[%clk 0:00:33]} 32. Nxa5 {[%clk 0:01:09]}  bxa5 {[%clk 0:00:34]} 33. Qc6 {[%clk 0:01:10]}  Qxc6 {[%clk 0:00:20]} 34. bxc6 {[%clk 0:01:11]}  Rc8 {[%clk 0:00:20]} 35. c7 {[%clk 0:01:09]}  e4 {[%clk 0:00:17]} 36. Rb1 {[%clk 0:01:06]}  a4 {[%clk 0:00:14]} 37. Rb8 {[%clk 0:01:05]}  Rxc7 {[%clk 0:00:14]} 38. Bxc7 {[%clk 0:01:06]}  a3 {[%clk 0:00:15]} 39. Ra8 {[%clk 0:01:06]} 1-0


[Site "https://www.chess.com"]

[Event "Titled Tuesday Blitz September 20 Late 2022"]
[White "Yurovskykh, Oleksandr"]
[Black "Yanchenko, Roman"]
[WhiteFideId "14134020"]
[BlackFideId "4137329"]
[WhiteElo "2303"]
[BlackElo "2514"]
[Result "0-1"]
[Round "08"]
[TimeControl "180+1"]
[Date "2022.09.20"]
[WhiteClock "0:00:01"]
[BlackClock "0:00:14"]

1. d4 {[%clk 0:03:00]}  d5 {[%clk 0:03:00]} 2. Bf4 {[%clk 0:02:59]}  Bf5 {[%clk 0:02:59]} 3. c4 {[%clk 0:02:59]}  c6 {[%clk 0:02:59]} 4. Nc3 {[%clk 0:02:59]}  e6 {[%clk 0:02:59]} 5. e3 {[%clk 0:02:58]}  Nd7 {[%clk 0:02:58]} 6. Nf3 {[%clk 0:02:58]}  Ngf6 {[%clk 0:02:58]} 7. Qb3 {[%clk 0:02:59]}  Qb6 {[%clk 0:02:57]} 8. c5 {[%clk 0:02:59]}  Qxb3 {[%clk 0:02:58]} 9. axb3 {[%clk 0:03:00]}  a6 {[%clk 0:02:58]} 10. b4 {[%clk 0:03:01]}  Rc8 {[%clk 0:02:59]} 11. h3 {[%clk 0:02:59]}  Be7 {[%clk 0:02:59]} 12. Nd2 {[%clk 0:02:59]}  Bd8 {[%clk 0:02:55]} 13. Nb3 {[%clk 0:02:58]}  Bc7 {[%clk 0:02:55]} 14. Bxc7 {[%clk 0:02:56]}  Rxc7 {[%clk 0:02:55]} 15. b5 {[%clk 0:02:57]}  Bc2 {[%clk 0:02:18]} 16. b6 {[%clk 0:02:41]}  Rc8 {[%clk 0:02:18]} 17. Na5 {[%clk 0:02:41]}  Rb8 {[%clk 0:02:17]} 18. Bxa6 {[%clk 0:02:40]}  bxa6 {[%clk 0:01:59]} 19. Nxc6 {[%clk 0:02:36]}  Rc8 {[%clk 0:02:00]} 20. Rxa6 {[%clk 0:02:22]}  Bd3 {[%clk 0:01:54]} 21. Ra7 {[%clk 0:02:17]}  Rxc6 {[%clk 0:00:50]} 22. Ra8+ {[%clk 0:02:16]}  Ke7 {[%clk 0:00:51]} 23. Rxh8 {[%clk 0:02:16]}  Nxb6 {[%clk 0:00:51]} 24. cxb6 {[%clk 0:02:07]}  Rxb6 {[%clk 0:00:52]} 25. Kd2 {[%clk 0:01:43]}  Ne4+ {[%clk 0:00:52]} 26. Nxe4 {[%clk 0:01:23]}  dxe4 {[%clk 0:00:53]} 27. Kc3 {[%clk 0:00:42]}  Rc6+ {[%clk 0:00:53]} 28. Kb4 {[%clk 0:00:41]}  Rb6+ {[%clk 0:00:54]} 29. Kc5 {[%clk 0:00:36]}  Rxb2 {[%clk 0:00:54]} 30. Ra1 {[%clk 0:00:35]}  Rc2+ {[%clk 0:00:51]} 31. Kb4 {[%clk 0:00:34]}  Rxf2 {[%clk 0:00:51]} 32. Ra7+ {[%clk 0:00:35]}  Kf6 {[%clk 0:00:51]} 33. g4 {[%clk 0:00:28]}  Kg6 {[%clk 0:00:52]} 34. h4 {[%clk 0:00:26]}  h6 {[%clk 0:00:35]} 35. h5+ {[%clk 0:00:21]}  Kg5 {[%clk 0:00:35]} 36. Rh7 {[%clk 0:00:20]}  Kf6 {[%clk 0:00:33]} 37. g5+ {[%clk 0:00:15]}  hxg5 {[%clk 0:00:17]} 38. h6 {[%clk 0:00:15]}  Kg6 {[%clk 0:00:17]} 39. Rxg7+ {[%clk 0:00:14]}  Kxh6 {[%clk 0:00:18]} 40. Rgxf7 {[%clk 0:00:12]}  Rf3 {[%clk 0:00:17]} 41. Rh7+ {[%clk 0:00:04]}  Kg6 {[%clk 0:00:18]} 42. Rag7+ {[%clk 0:00:05]}  Kf5 {[%clk 0:00:18]} 43. Rh5 {[%clk 0:00:04]}  Rg3 {[%clk 0:00:17]} 44. Rf7+ {[%clk 0:00:02]}  Kg6 {[%clk 0:00:17]} 45. Rhh7 {[%clk 0:00:02]}  Rxe3 {[%clk 0:00:16]} 46. Rfg7+ {[%clk 0:00:02]}  Kf5 {[%clk 0:00:17]} 47. Rf7+ {[%clk 0:00:01]}  Kg4 {[%clk 0:00:17]} 48. Kc3 {[%clk 0:00:01]}  Rg3 {[%clk 0:00:14]} 0-1


[Site "https://www.chess.com"]

[Event "Titled Tuesday Blitz September 20 Late 2022"]
[White "Becerra, Juan David"]
[Black "Stoyanov, Tsvetan"]
[WhiteFideId "4404998"]
[BlackFideId "2917173"]
[WhiteElo "2278"]
[BlackElo "2283"]
[Result "0-1"]
[Round "09"]
[TimeControl "180+1"]
[Date "2022.09.20"]
[WhiteClock "0:00:02"]
[BlackClock "0:00:20"]

1. d4 {[%clk 0:02:58]}  Nf6 {[%clk 0:02:59]} 2. c4 {[%clk 0:02:57]}  e6 {[%clk 0:03:00]} 3. Nc3 {[%clk 0:02:55]}  Bb4 {[%clk 0:02:58]} 4. a3 {[%clk 0:02:56]}  Bxc3+ {[%clk 0:02:58]} 5. bxc3 {[%clk 0:02:56]}  d5 {[%clk 0:02:56]} 6. Bg5 {[%clk 0:02:44]}  O-O {[%clk 0:02:51]} 7. e3 {[%clk 0:02:41]}  c5 {[%clk 0:02:50]} 8. cxd5 {[%clk 0:02:30]}  exd5 {[%clk 0:02:49]} 9. Bd3 {[%clk 0:02:24]}  Nbd7 {[%clk 0:02:14]} 10. Nf3 {[%clk 0:02:15]}  Qa5 {[%clk 0:02:12]} 11. O-O {[%clk 0:02:04]}  c4 {[%clk 0:02:10]} 12. Bc2 {[%clk 0:01:40]}  Qxc3 {[%clk 0:02:08]} 13. Qb1 {[%clk 0:01:13]}  Qa5 {[%clk 0:02:03]} 14. Ne5 {[%clk 0:01:08]}  h6 {[%clk 0:02:01]} 15. Nxd7 {[%clk 0:01:06]}  Nxd7 {[%clk 0:01:57]} 16. Bh7+ {[%clk 0:01:06]}  Kh8 {[%clk 0:01:57]} 17. Be7 {[%clk 0:01:06]}  Re8 {[%clk 0:01:57]} 18. Bb4 {[%clk 0:01:04]}  Qc7 {[%clk 0:01:55]} 19. Bc2 {[%clk 0:00:55]}  Nf6 {[%clk 0:01:47]} 20. a4 {[%clk 0:00:54]}  Ng4 {[%clk 0:01:46]} 21. g3 {[%clk 0:00:49]}  a5 {[%clk 0:01:42]} 22. Bc5 {[%clk 0:00:44]}  Ra6 {[%clk 0:01:41]} 23. Qb2 {[%clk 0:00:22]}  h5 {[%clk 0:01:28]} 24. Rab1 {[%clk 0:00:19]}  Rh6 {[%clk 0:01:24]} 25. Bd1 {[%clk 0:00:16]}  Nf6 {[%clk 0:01:01]} 26. Qb6 {[%clk 0:00:14]}  Qd7 {[%clk 0:01:00]} 27. Bf3 {[%clk 0:00:11]}  h4 {[%clk 0:00:51]} 28. Qb5 {[%clk 0:00:09]}  Qf5 {[%clk 0:00:48]} 29. Bg2 {[%clk 0:00:09]}  hxg3 {[%clk 0:00:44]} 30. hxg3 {[%clk 0:00:08]}  Qh5 {[%clk 0:00:44]} 31. Rfe1 {[%clk 0:00:07]}  Bh3 {[%clk 0:00:40]} 32. Bd6 {[%clk 0:00:02]}  Re6 {[%clk 0:00:20]} 0-1


[Site "https://www.chess.com"]